[Event "Titled Tuesday Blitz May 16 Early 2023"]
[White "Priasmoro, Novendra"]
[Black "Ter-Sahakyan, Samvel"]
[WhiteFideId "7105029"]
[BlackFideId "13302531"]
[WhiteElo "2412"]
[BlackElo "2545"]
[Result "1-0"]
[Round "05"]
[TimeControl "180+2"]
[Date "2023.05.16"]
[WhiteClock "0:00:16"]
[BlackClock "0:00:00"]

1. e4 {[%clk 0:02:53]}  c5 {[%clk 0:02:59]} 2. Nf3 {[%clk 0:02:52]}  e6 {[%clk 0:02:59]} 3. d4 {[%clk 0:02:51]}  cxd4 {[%clk 0:03:00]} 4. Nxd4 {[%clk 0:02:52]}  Nf6 {[%clk 0:03:00]} 5. Bd3 {[%clk 0:02:52]}  Nc6 {[%clk 0:02:59]} 6. Nxc6 {[%clk 0:02:49]}  bxc6 {[%clk 0:03:00]} 7. O-O {[%clk 0:02:49]}  d5 {[%clk 0:03:00]} 8. Nc3 {[%clk 0:02:49]}  Be7 {[%clk 0:02:59]} 9. Qe2 {[%clk 0:02:49]}  O-O {[%clk 0:02:58]} 10. Kh1 {[%clk 0:02:41]}  a5 {[%clk 0:02:57]} 11. f4 {[%clk 0:02:42]}  Nd7 {[%clk 0:02:49]} 12. b3 {[%clk 0:02:21]}  Nc5 {[%clk 0:02:43]} 13. e5 {[%clk 0:02:15]}  a4 {[%clk 0:02:32]} 14. Bb2 {[%clk 0:02:04]}  g6 {[%clk 0:02:27]} 15. Rf3 {[%clk 0:01:45]}  Qa5 {[%clk 0:02:11]} 16. Raf1 {[%clk 0:01:36]}  axb3 {[%clk 0:01:59]} 17. axb3 {[%clk 0:01:37]}  Nxd3 {[%clk 0:01:59]} 18. cxd3 {[%clk 0:01:37]}  Qb4 {[%clk 0:01:55]} 19. Qc2 {[%clk 0:01:16]}  Rb8 {[%clk 0:01:52]} 20. d4 {[%clk 0:01:17]}  Qxd4 {[%clk 0:01:15]} 21. Nb5 {[%clk 0:01:11]}  Qc5 {[%clk 0:01:12]} 22. Qxc5 {[%clk 0:01:02]}  Bxc5 {[%clk 0:01:13]} 23. Nd4 {[%clk 0:01:03]}  Bd7 {[%clk 0:00:57]} 24. Rc1 {[%clk 0:01:02]}  Bb6 {[%clk 0:00:41]} 25. Nxc6 {[%clk 0:00:59]}  Ra8 {[%clk 0:00:41]} 26. Bd4 {[%clk 0:00:53]}  Bxc6 {[%clk 0:00:27]} 27. Bxb6 {[%clk 0:00:53]}  Bb5 {[%clk 0:00:26]} 28. Bc5 {[%clk 0:00:52]}  Rfc8 {[%clk 0:00:26]} 29. b4 {[%clk 0:00:52]}  Ra2 {[%clk 0:00:25]} 30. h3 {[%clk 0:00:52]}  Rca8 {[%clk 0:00:23]} 31. Rfc3 {[%clk 0:00:50]}  Bc4 {[%clk 0:00:20]} 32. Be7 {[%clk 0:00:50]}  h6 {[%clk 0:00:19]} 33. Bc5 {[%clk 0:00:38]}  Rb2 {[%clk 0:00:19]} 34. R3c2 {[%clk 0:00:37]}  Rb3 {[%clk 0:00:17]} 35. Rc3 {[%clk 0:00:37]}  Rxc3 {[%clk 0:00:14]} 36. Rxc3 {[%clk 0:00:36]}  Ra2 {[%clk 0:00:14]} 37. Be7 {[%clk 0:00:34]}  Kh7 {[%clk 0:00:12]} 38. Bf6 {[%clk 0:00:34]}  g5 {[%clk 0:00:07]} 39. fxg5 {[%clk 0:00:33]}  hxg5 {[%clk 0:00:07]} 40. Bxg5 {[%clk 0:00:34]}  Rb2 {[%clk 0:00:07]} 41. Rf3 {[%clk 0:00:33]}  d4 {[%clk 0:00:06]} 42. Rf4 {[%clk 0:00:32]}  Bd5 {[%clk 0:00:04]} 43. Rxd4 {[%clk 0:00:25]}  Bxg2+ {[%clk 0:00:04]} 44. Kg1 {[%clk 0:00:26]}  Bd5 {[%clk 0:00:05]} 45. h4 {[%clk 0:00:25]}  Kg6 {[%clk 0:00:05]} 46. Bf6 {[%clk 0:00:25]}  Kh5 {[%clk 0:00:05]} 47. Kf1 {[%clk 0:00:25]}  Rc2 {[%clk 0:00:04]} 48. Be7 {[%clk 0:00:21]}  Rb2 {[%clk 0:00:03]} 49. Ke1 {[%clk 0:00:21]}  Rc2 {[%clk 0:00:03]} 50. Kd1 {[%clk 0:00:21]}  Rc7 {[%clk 0:00:03]} 51. Bf6 {[%clk 0:00:21]}  Rc3 {[%clk 0:00:03]} 52. Kd2 {[%clk 0:00:20]}  Rb3 {[%clk 0:00:03]} 53. Kc2 {[%clk 0:00:21]}  Ra3 {[%clk 0:00:03]} 54. b5 {[%clk 0:00:20]}  Ra5 {[%clk 0:00:02]} 55. Rb4 {[%clk 0:00:20]}  Ra7 {[%clk 0:00:02]} 56. b6 {[%clk 0:00:21]}  Rb7 {[%clk 0:00:03]} 57. Kc3 {[%clk 0:00:22]}  Kg6 {[%clk 0:00:03]} 58. Kd4 {[%clk 0:00:22]}  Kh5 {[%clk 0:00:04]} 59. Kc5 {[%clk 0:00:23]}  Kg6 {[%clk 0:00:04]} 60. Rd4 {[%clk 0:00:24]}  Kh5 {[%clk 0:00:03]} 61. Bd8 {[%clk 0:00:20]}  Rd7 {[%clk 0:00:03]} 62. Bc7 {[%clk 0:00:19]}  Kg6 {[%clk 0:00:01]} 63. Kb4 {[%clk 0:00:15]}  Kh5 {[%clk 0:00:00]} 64. b7 {[%clk 0:00:16]} 1-0


[Site "https://www.chess.com"]

[Event "Titled Tuesday Blitz May 16 Early 2023"]
[White "Martinez Ramirez, Lennis"]
[Black "Galchenko, Matvey"]
[WhiteFideId "3509079"]
[BlackFideId "24175480"]
[WhiteElo "2410"]
[BlackElo "2423"]
[Result "1-0"]
[Round "05"]
[TimeControl "180+2"]
[Date "2023.05.16"]
[WhiteClock "0:00:18"]
[BlackClock "0:00:09"]

1. c4 {[%clk 0:03:00]}  e6 {[%clk 0:02:54]} 2. d4 {[%clk 0:03:00]}  d5 {[%clk 0:02:54]} 3. Nc3 {[%clk 0:03:00]}  c6 {[%clk 0:02:54]} 4. cxd5 {[%clk 0:02:58]}  exd5 {[%clk 0:02:55]} 5. Bf4 {[%clk 0:02:53]}  Bf5 {[%clk 0:02:54]} 6. e3 {[%clk 0:02:52]}  Qb6 {[%clk 0:02:48]} 7. Bd3 {[%clk 0:02:49]}  Bxd3 {[%clk 0:02:32]} 8. Qxd3 {[%clk 0:02:50]}  Nd7 {[%clk 0:02:32]} 9. Nge2 {[%clk 0:02:46]}  Ngf6 {[%clk 0:02:32]} 10. O-O-O {[%clk 0:02:39]}  Be7 {[%clk 0:02:31]} 11. f3 {[%clk 0:02:36]}  c5 {[%clk 0:01:42]} 12. g4 {[%clk 0:02:10]}  h6 {[%clk 0:01:29]} 13. h4 {[%clk 0:02:08]}  Qc6 {[%clk 0:01:06]} 14. g5 {[%clk 0:01:58]}  Nh5 {[%clk 0:01:06]} 15. dxc5 {[%clk 0:01:58]}  Nxc5 {[%clk 0:00:46]} 16. Qxd5 {[%clk 0:01:55]}  Rc8 {[%clk 0:00:46]} 17. gxh6 {[%clk 0:01:44]}  Nxf4 {[%clk 0:00:43]} 18. Nxf4 {[%clk 0:01:35]}  Rxh6 {[%clk 0:00:43]} 19. h5 {[%clk 0:01:20]}  Qxd5 {[%clk 0:00:42]} 20. Rxd5 {[%clk 0:01:20]}  Rhc6 {[%clk 0:00:38]} 21. Kb1 {[%clk 0:01:07]}  Bf6 {[%clk 0:00:35]} 22. Nb5 {[%clk 0:00:44]}  Ke7 {[%clk 0:00:35]} 23. Nxa7 {[%clk 0:00:42]}  Na4 {[%clk 0:00:20]} 24. Nxc8+ {[%clk 0:00:40]}  Rxc8 {[%clk 0:00:21]} 25. Rd2 {[%clk 0:00:39]}  Be5 {[%clk 0:00:17]} 26. Nd5+ {[%clk 0:00:39]}  Ke6 {[%clk 0:00:17]} 27. f4 {[%clk 0:00:39]}  Bd6 {[%clk 0:00:16]} 28. h6 {[%clk 0:00:34]}  Rh8 {[%clk 0:00:15]} 29. f5+ {[%clk 0:00:24]}  Kxf5 {[%clk 0:00:15]} 30. Rf1+ {[%clk 0:00:22]}  Ke6 {[%clk 0:00:15]} 31. hxg7 {[%clk 0:00:22]}  Rg8 {[%clk 0:00:16]} 32. Nf4+ {[%clk 0:00:18]}  Bxf4 {[%clk 0:00:13]} 33. Rxf4 {[%clk 0:00:18]}  Nc5 {[%clk 0:00:13]} 34. Rg2 {[%clk 0:00:18]}  Nd7 {[%clk 0:00:13]} 35. Rh4 {[%clk 0:00:18]}  Kf6 {[%clk 0:00:10]} 36. Rh6+ {[%clk 0:00:18]}  Ke7 {[%clk 0:00:10]} 37. Rh8 {[%clk 0:00:18]}  Nf6 {[%clk 0:00:11]} 38. Rxg8 {[%clk 0:00:18]}  Nxg8 {[%clk 0:00:11]} 39. Kc2 {[%clk 0:00:18]}  Kf6 {[%clk 0:00:09]} 40. a4 {[%clk 0:00:18]} 1-0


[Site "https://www.chess.com"]

[Event "Titled Tuesday Blitz May 16 Early 2023"]
[White "Tari, Aryan"]
[Black "Kvaloy, Aksel Bu"]
[WhiteFideId "1510045"]
[BlackFideId "1528815"]
[WhiteElo "2571"]
[BlackElo "2242"]
[Result "1-0"]
[Round "05"]
[TimeControl "180+2"]
[Date "2023.05.16"]
[WhiteClock "0:00:33"]
[BlackClock "0:00:00"]

1. b3 {[%clk 0:02:48]}  e5 {[%clk 0:02:59]} 2. Bb2 {[%clk 0:02:48]}  Nc6 {[%clk 0:02:59]} 3. e3 {[%clk 0:02:49]}  d5 {[%clk 0:02:59]} 4. Bb5 {[%clk 0:02:48]}  Bd6 {[%clk 0:02:59]} 5. Ne2 {[%clk 0:02:42]}  Nf6 {[%clk 0:02:51]} 6. O-O {[%clk 0:02:40]}  a6 {[%clk 0:02:50]} 7. Bxc6+ {[%clk 0:02:40]}  bxc6 {[%clk 0:02:51]} 8. f4 {[%clk 0:02:41]}  exf4 {[%clk 0:02:47]} 9. Nxf4 {[%clk 0:02:42]}  O-O {[%clk 0:02:48]} 10. Nc3 {[%clk 0:02:37]}  Qe7 {[%clk 0:02:44]} 11. Nce2 {[%clk 0:02:31]}  Ne4 {[%clk 0:02:41]} 12. d3 {[%clk 0:02:25]}  Nf6 {[%clk 0:02:41]} 13. Qd2 {[%clk 0:02:23]}  Ng4 {[%clk 0:02:38]} 14. Rf3 {[%clk 0:02:20]}  Bd7 {[%clk 0:02:19]} 15. Rg3 {[%clk 0:01:56]}  Rae8 {[%clk 0:02:10]} 16. h3 {[%clk 0:01:47]}  Ne5 {[%clk 0:02:09]} 17. Nh5 {[%clk 0:01:32]}  Ng6 {[%clk 0:02:08]} 18. Bxg7 {[%clk 0:01:25]}  Bxg3 {[%clk 0:02:08]} 19. Nexg3 {[%clk 0:01:12]}  Qxe3+ {[%clk 0:02:02]} 20. Qxe3 {[%clk 0:01:13]}  Rxe3 {[%clk 0:02:03]} 21. Bd4 {[%clk 0:01:08]}  Rxg3 {[%clk 0:01:29]} 22. Nf6+ {[%clk 0:01:01]}  Kg7 {[%clk 0:01:29]} 23. Nxd7+ {[%clk 0:00:59]}  Kh6 {[%clk 0:01:29]} 24. Bf2 {[%clk 0:00:52]}  Rd8 {[%clk 0:01:17]} 25. Nf6 {[%clk 0:00:53]}  Rg5 {[%clk 0:00:18]} 26. Be3 {[%clk 0:00:53]}  d4 {[%clk 0:00:18]} 27. Bc1 {[%clk 0:00:44]}  Nh4 {[%clk 0:00:10]} 28. Ne4 {[%clk 0:00:44]}  f6 {[%clk 0:00:09]} 29. Bxg5+ {[%clk 0:00:38]}  fxg5 {[%clk 0:00:09]} 30. Rf1 {[%clk 0:00:39]}  Kg7 {[%clk 0:00:07]} 31. Rf6 {[%clk 0:00:38]}  c5 {[%clk 0:00:05]} 32. Rc6 {[%clk 0:00:38]}  Rd7 {[%clk 0:00:05]} 33. Nxc5 {[%clk 0:00:38]}  Re7 {[%clk 0:00:04]} 34. Ne6+ {[%clk 0:00:38]}  Kg8 {[%clk 0:00:03]} 35. Nxd4 {[%clk 0:00:38]}  h5 {[%clk 0:00:01]} 36. Rxa6 {[%clk 0:00:37]}  g4 {[%clk 0:00:02]} 37. hxg4 {[%clk 0:00:36]}  hxg4 {[%clk 0:00:03]} 38. Kf2 {[%clk 0:00:32]}  Ng6 {[%clk 0:00:00]} 39. Rxg6+ {[%clk 0:00:33]} 1-0


[Site "https://www.chess.com"]

[Event "Titled Tuesday Blitz May 16 Early 2023"]
[White "Akash G"]
[Black "Drygalov, Sergey"]
[WhiteFideId "5040299"]
[BlackFideId "24171743"]
[WhiteElo "2395"]
[BlackElo "2533"]
[Result "0-1"]
[Round "05"]
[TimeControl "180+2"]
[Date "2023.05.16"]
[WhiteClock "0:00:35"]
[BlackClock "0:02:05"]

1. e4 {[%clk 0:02:57]}  c5 {[%clk 0:03:00]} 2. Nf3 {[%clk 0:02:56]}  d6 {[%clk 0:03:00]} 3. d4 {[%clk 0:02:54]}  cxd4 {[%clk 0:03:01]} 4. Nxd4 {[%clk 0:02:55]}  Nf6 {[%clk 0:03:01]} 5. Bd3 {[%clk 0:02:54]}  Nc6 {[%clk 0:02:59]} 6. Nb3 {[%clk 0:02:52]}  g6 {[%clk 0:02:58]} 7. c4 {[%clk 0:02:50]}  Bg7 {[%clk 0:02:59]} 8. Nc3 {[%clk 0:02:50]}  O-O {[%clk 0:02:59]} 9. f3 {[%clk 0:02:50]}  Be6 {[%clk 0:02:59]} 10. O-O {[%clk 0:02:49]}  Rc8 {[%clk 0:02:58]} 11. Nd5 {[%clk 0:02:49]}  Ne5 {[%clk 0:02:58]} 12. Be3 {[%clk 0:02:39]}  Nxc4 {[%clk 0:02:51]} 13. Bxc4 {[%clk 0:02:39]}  Rxc4 {[%clk 0:02:51]} 14. Bxa7 {[%clk 0:02:31]}  Bxd5 {[%clk 0:02:47]} 15. exd5 {[%clk 0:02:31]}  b6 {[%clk 0:02:47]} 16. Qd3 {[%clk 0:01:48]}  Ra4 {[%clk 0:02:46]} 17. Nd4 {[%clk 0:01:43]}  Rxa7 {[%clk 0:02:45]} 18. Nc6 {[%clk 0:01:43]}  Qa8 {[%clk 0:02:46]} 19. Nxa7 {[%clk 0:01:42]}  Qxa7 {[%clk 0:02:47]} 20. Kh1 {[%clk 0:01:42]}  Nd7 {[%clk 0:02:47]} 21. Rf2 {[%clk 0:01:37]}  Rc8 {[%clk 0:02:39]} 22. a3 {[%clk 0:01:33]}  Qa4 {[%clk 0:02:36]} 23. Re2 {[%clk 0:01:28]}  Bf6 {[%clk 0:02:34]} 24. g3 {[%clk 0:01:26]}  h5 {[%clk 0:02:34]} 25. Rae1 {[%clk 0:01:25]}  h4 {[%clk 0:02:33]} 26. Kg2 {[%clk 0:01:25]}  Ne5 {[%clk 0:02:27]} 27. Qe4 {[%clk 0:01:23]}  Rc4 {[%clk 0:02:26]} 28. Qb1 {[%clk 0:01:22]}  Rd4 {[%clk 0:02:15]} 29. f4 {[%clk 0:01:16]}  Nd3 {[%clk 0:02:10]} 30. Rf1 {[%clk 0:00:57]}  Qc4 {[%clk 0:02:10]} 31. Rc2 {[%clk 0:00:51]}  Qxd5+ {[%clk 0:02:09]} 32. Kg1 {[%clk 0:00:47]}  Re4 {[%clk 0:02:06]} 33. Rc8+ {[%clk 0:00:35]}  Kg7 {[%clk 0:02:05]} 0-1


[Site "https://www.chess.com"]

[Event "Titled Tuesday Blitz May 16 Early 2023"]
[White "Lewicki, Miroslaw"]
[Black "Durarbayli, Vasif"]
[WhiteFideId "1113380"]
[BlackFideId "13402935"]
[WhiteElo "2212"]
[BlackElo "2551"]
[Result "0-1"]
[Round "05"]
[TimeControl "180+2"]
[Date "2023.05.16"]
[WhiteClock "0:00:11"]
[BlackClock "0:00:21"]

1. g3 {[%clk 0:03:00]}  d5 {[%clk 0:02:59]} 2. Bg2 {[%clk 0:03:01]}  e5 {[%clk 0:02:58]} 3. Nf3 {[%clk 0:03:01]}  e4 {[%clk 0:02:58]} 4. Nd4 {[%clk 0:03:02]}  c5 {[%clk 0:02:59]} 5. Nb3 {[%clk 0:03:02]}  c4 {[%clk 0:03:00]} 6. Nd4 {[%clk 0:03:01]}  Bc5 {[%clk 0:03:00]} 7. c3 {[%clk 0:03:02]}  Nc6 {[%clk 0:02:55]} 8. Nxc6 {[%clk 0:03:02]}  bxc6 {[%clk 0:02:55]} 9. O-O {[%clk 0:03:02]}  Bf5 {[%clk 0:02:39]} 10. b3 {[%clk 0:02:44]}  Nf6 {[%clk 0:02:32]} 11. bxc4 {[%clk 0:02:42]}  dxc4 {[%clk 0:02:18]} 12. Qa4 {[%clk 0:02:41]}  O-O {[%clk 0:02:05]} 13. Qxc4 {[%clk 0:02:37]}  Qb6 {[%clk 0:01:54]} 14. Ba3 {[%clk 0:02:20]}  Bxa3 {[%clk 0:01:53]} 15. Nxa3 {[%clk 0:02:20]}  Qb2 {[%clk 0:01:54]} 16. Qc5 {[%clk 0:02:13]}  Bg4 {[%clk 0:01:50]} 17. Nc4 {[%clk 0:02:12]}  Qb5 {[%clk 0:01:49]} 18. Qxb5 {[%clk 0:01:57]}  cxb5 {[%clk 0:01:50]} 19. Nd6 {[%clk 0:01:58]}  Rad8 {[%clk 0:01:49]} 20. Nxb5 {[%clk 0:01:13]}  Bxe2 {[%clk 0:01:46]} 21. Rfb1 {[%clk 0:01:14]}  Rxd2 {[%clk 0:01:33]} 22. Nxa7 {[%clk 0:01:10]}  Bd3 {[%clk 0:01:31]} 23. Rd1 {[%clk 0:01:08]}  Rc2 {[%clk 0:01:31]} 24. Rdc1 {[%clk 0:01:06]}  Rb2 {[%clk 0:01:30]} 25. h3 {[%clk 0:00:56]}  Ra8 {[%clk 0:01:11]} 26. Nc6 {[%clk 0:00:54]}  Raxa2 {[%clk 0:01:09]} 27. Rxa2 {[%clk 0:00:53]}  Rxa2 {[%clk 0:01:10]} 28. Nb4 {[%clk 0:00:54]}  Rb2 {[%clk 0:01:05]} 29. Rd1 {[%clk 0:00:50]}  Rb1 {[%clk 0:00:49]} 30. Rxb1 {[%clk 0:00:47]}  Bxb1 {[%clk 0:00:50]} 31. Kf1 {[%clk 0:00:44]}  Kf8 {[%clk 0:00:46]} 32. Ke2 {[%clk 0:00:43]}  Ke7 {[%clk 0:00:46]} 33. Ke3 {[%clk 0:00:44]}  Kd6 {[%clk 0:00:41]} 34. Kd4 {[%clk 0:00:44]}  h5 {[%clk 0:00:40]} 35. c4 {[%clk 0:00:40]}  Nd7 {[%clk 0:00:39]} 36. Bxe4 {[%clk 0:00:28]}  Bxe4 {[%clk 0:00:39]} 37. Kxe4 {[%clk 0:00:29]}  Kc5 {[%clk 0:00:39]} 38. Nd3+ {[%clk 0:00:29]}  Kxc4 {[%clk 0:00:34]} 39. Ne5+ {[%clk 0:00:29]}  Nxe5 {[%clk 0:00:34]} 40. Kxe5 {[%clk 0:00:30]}  Kd3 {[%clk 0:00:35]} 41. Kf5 {[%clk 0:00:21]}  Ke2 {[%clk 0:00:33]} 42. f4 {[%clk 0:00:21]}  Kf3 {[%clk 0:00:32]} 43. g4 {[%clk 0:00:16]}  h4 {[%clk 0:00:29]} 44. g5 {[%clk 0:00:13]}  Kg3 {[%clk 0:00:23]} 45. g6 {[%clk 0:00:13]}  fxg6+ {[%clk 0:00:20]} 46. Kg5 {[%clk 0:00:14]}  Kxh3 {[%clk 0:00:20]} 47. Kxg6 {[%clk 0:00:14]}  Kg4 {[%clk 0:00:21]} 48. f5 {[%clk 0:00:11]}  h3 {[%clk 0:00:21]} 0-1


[Site "https://www.chess.com"]

[Event "Titled Tuesday Blitz May 16 Early 2023"]
[White "Rodshtein, Maxim"]
[Black "Soham Kamotra"]
[WhiteFideId "2806851"]
[BlackFideId "46647490"]
[WhiteElo "2555"]
[BlackElo "2209"]
[Result "0-1"]
[Round "05"]
[TimeControl "180+2"]
[Date "2023.05.16"]
[WhiteClock "0:00:00"]
[BlackClock "0:00:15"]

1. b3 {[%clk 0:03:00]}  Nf6 {[%clk 0:02:57]} 2. Bb2 {[%clk 0:03:00]}  d5 {[%clk 0:02:58]} 3. e3 {[%clk 0:03:00]}  Bf5 {[%clk 0:02:57]} 4. Nf3 {[%clk 0:02:59]}  Nbd7 {[%clk 0:02:56]} 5. c4 {[%clk 0:02:58]}  c6 {[%clk 0:02:55]} 6. Nc3 {[%clk 0:02:53]}  h6 {[%clk 0:02:54]} 7. d4 {[%clk 0:02:46]}  e6 {[%clk 0:02:54]} 8. Bd3 {[%clk 0:02:46]}  Bxd3 {[%clk 0:02:54]} 9. Qxd3 {[%clk 0:02:47]}  Bb4 {[%clk 0:02:54]} 10. O-O {[%clk 0:02:48]}  O-O {[%clk 0:02:54]} 11. Rfd1 {[%clk 0:02:45]}  Qe7 {[%clk 0:02:43]} 12. a3 {[%clk 0:02:45]}  Ba5 {[%clk 0:02:35]} 13. b4 {[%clk 0:02:34]}  Bc7 {[%clk 0:02:35]} 14. e4 {[%clk 0:02:33]}  dxe4 {[%clk 0:02:31]} 15. Nxe4 {[%clk 0:02:34]}  Nxe4 {[%clk 0:02:32]} 16. Qxe4 {[%clk 0:02:35]}  Nf6 {[%clk 0:02:32]} 17. Qe2 {[%clk 0:02:35]}  a5 {[%clk 0:02:03]} 18. d5 {[%clk 0:02:34]}  cxd5 {[%clk 0:01:51]} 19. cxd5 {[%clk 0:02:34]}  axb4 {[%clk 0:01:43]} 20. axb4 {[%clk 0:02:35]}  Rxa1 {[%clk 0:01:39]} 21. Bxa1 {[%clk 0:02:34]}  Rd8 {[%clk 0:01:38]} 22. dxe6 {[%clk 0:02:27]}  Rxd1+ {[%clk 0:01:34]} 23. Qxd1 {[%clk 0:02:28]}  Qxe6 {[%clk 0:01:34]} 24. g3 {[%clk 0:02:18]}  Bd6 {[%clk 0:01:22]} 25. b5 {[%clk 0:01:56]}  Qd5 {[%clk 0:01:09]} 26. Qe2 {[%clk 0:01:49]}  Ne4 {[%clk 0:01:06]} 27. Bd4 {[%clk 0:01:47]}  Bc5 {[%clk 0:00:50]} 28. Bxc5 {[%clk 0:01:45]}  Nxc5 {[%clk 0:00:51]} 29. Qe7 {[%clk 0:01:07]}  Nd3 {[%clk 0:00:30]} 30. Qe8+ {[%clk 0:00:34]}  Kh7 {[%clk 0:00:30]} 31. Nh4 {[%clk 0:00:26]}  g5 {[%clk 0:00:15]} 32. Ng2 {[%clk 0:00:22]}  Ne5 {[%clk 0:00:15]} 33. Ne1 {[%clk 0:00:11]}  Qe4 {[%clk 0:00:15]} 34. Kf1 {[%clk 0:00:10]}  Qc4+ {[%clk 0:00:15]} 35. Kg1 {[%clk 0:00:00]}  Qe2 {[%clk 0:00:15]} 0-1


[Site "https://www.chess.com"]

[Event "Titled Tuesday Blitz May 16 Early 2023"]
[White "Orlov, Georgi"]
[Black "Sokolovsky, Yahli"]
[WhiteFideId "2011271"]
[BlackFideId "2820242"]
[WhiteElo "2623"]
[BlackElo "2389"]
[Result "0-1"]
[Round "05"]
[TimeControl "180+2"]
[Date "2023.05.16"]
[WhiteClock "0:00:07"]
[BlackClock "0:00:33"]

1. d4 {[%clk 0:03:00]}  d5 {[%clk 0:03:00]} 2. Nf3 {[%clk 0:03:00]}  c6 {[%clk 0:02:59]} 3. c4 {[%clk 0:02:59]}  e6 {[%clk 0:02:58]} 4. Nbd2 {[%clk 0:02:57]}  f5 {[%clk 0:02:58]} 5. g3 {[%clk 0:02:57]}  Nf6 {[%clk 0:02:55]} 6. Bg2 {[%clk 0:02:57]}  Nbd7 {[%clk 0:02:55]} 7. O-O {[%clk 0:02:52]}  Bd6 {[%clk 0:02:47]} 8. b3 {[%clk 0:02:43]}  Ne4 {[%clk 0:02:39]} 9. Bb2 {[%clk 0:02:42]}  O-O {[%clk 0:02:39]} 10. e3 {[%clk 0:02:42]}  b6 {[%clk 0:02:30]} 11. Qc2 {[%clk 0:02:40]}  Ba6 {[%clk 0:02:27]} 12. Rfd1 {[%clk 0:02:39]}  Rc8 {[%clk 0:02:26]} 13. Ne5 {[%clk 0:02:37]}  Bxe5 {[%clk 0:02:20]} 14. dxe5 {[%clk 0:02:36]}  Qc7 {[%clk 0:02:11]} 15. f4 {[%clk 0:02:21]}  Nxd2 {[%clk 0:01:58]} 16. Rxd2 {[%clk 0:02:20]}  Rfd8 {[%clk 0:01:56]} 17. Ba3 {[%clk 0:02:00]}  Nc5 {[%clk 0:01:48]} 18. Rc1 {[%clk 0:01:42]}  dxc4 {[%clk 0:01:24]} 19. Rxd8+ {[%clk 0:01:38]}  Rxd8 {[%clk 0:01:23]} 20. bxc4 {[%clk 0:01:32]}  Qd7 {[%clk 0:01:17]} 21. Bxc5 {[%clk 0:01:15]}  bxc5 {[%clk 0:01:18]} 22. Bf1 {[%clk 0:01:11]}  Kf7 {[%clk 0:01:02]} 23. Qa4 {[%clk 0:00:24]}  Qd2 {[%clk 0:00:58]} 24. Qa3 {[%clk 0:00:24]}  Rb8 {[%clk 0:00:49]} 25. Qc3 {[%clk 0:00:20]}  Rb2 {[%clk 0:00:39]} 26. Qxd2 {[%clk 0:00:19]}  Rxd2 {[%clk 0:00:40]} 27. Rc3 {[%clk 0:00:19]}  Rxa2 {[%clk 0:00:39]} 28. Rd3 {[%clk 0:00:19]}  Ke7 {[%clk 0:00:37]} 29. Rd6 {[%clk 0:00:19]}  Bb7 {[%clk 0:00:35]} 30. g4 {[%clk 0:00:17]}  g6 {[%clk 0:00:32]} 31. gxf5 {[%clk 0:00:16]}  gxf5 {[%clk 0:00:33]} 32. Bg2 {[%clk 0:00:14]}  Ra6 {[%clk 0:00:32]} 33. Kf2 {[%clk 0:00:14]}  Rb6 {[%clk 0:00:31]} 34. Kg3 {[%clk 0:00:14]}  a5 {[%clk 0:00:31]} 35. Rd3 {[%clk 0:00:14]}  a4 {[%clk 0:00:31]} 36. Ra3 {[%clk 0:00:14]}  Rb4 {[%clk 0:00:32]} 37. Bf1 {[%clk 0:00:14]}  Ba6 {[%clk 0:00:33]} 38. Bd3 {[%clk 0:00:14]}  Bxc4 {[%clk 0:00:32]} 39. Bc2 {[%clk 0:00:13]}  Bb3 {[%clk 0:00:32]} 40. Bxb3 {[%clk 0:00:10]}  axb3 {[%clk 0:00:33]} 41. Ra7+ {[%clk 0:00:10]}  Kd8 {[%clk 0:00:33]} 42. Ra8+ {[%clk 0:00:10]}  Kc7 {[%clk 0:00:33]} 43. Ra7+ {[%clk 0:00:11]}  Kb6 {[%clk 0:00:33]} 44. Ra1 {[%clk 0:00:07]}  b2 {[%clk 0:00:33]} 0-1


[Site "https://www.chess.com"]

[Event "Titled Tuesday Blitz May 16 Early 2023"]
[White "Visakh N R"]
[Black "Novik, Maxim"]
[WhiteFideId "25012223"]
[BlackFideId "4102924"]
[WhiteElo "2466"]
[BlackElo "2287"]
[Result "1-0"]
[Round "05"]
[TimeControl "180+2"]
[Date "2023.05.16"]
[WhiteClock "0:00:37"]
[BlackClock "0:00:06"]

1. e4 {[%clk 0:02:59]}  c6 {[%clk 0:02:58]} 2. Nf3 {[%clk 0:02:54]}  d5 {[%clk 0:02:58]} 3. Nc3 {[%clk 0:02:55]}  dxe4 {[%clk 0:02:58]} 4. Nxe4 {[%clk 0:02:55]}  Nf6 {[%clk 0:02:58]} 5. Qe2 {[%clk 0:02:54]}  Nxe4 {[%clk 0:02:58]} 6. Qxe4 {[%clk 0:02:54]}  Qd5 {[%clk 0:02:59]} 7. Qh4 {[%clk 0:02:52]}  Qe6+ {[%clk 0:02:59]} 8. Be2 {[%clk 0:02:51]}  Qg6 {[%clk 0:03:00]} 9. O-O {[%clk 0:02:41]}  Qxc2 {[%clk 0:03:00]} 10. Re1 {[%clk 0:02:39]}  Qf5 {[%clk 0:02:59]} 11. d4 {[%clk 0:02:31]}  Qg4 {[%clk 0:02:54]} 12. Bg5 {[%clk 0:02:23]}  Qxh4 {[%clk 0:02:54]} 13. Bxh4 {[%clk 0:02:23]}  f6 {[%clk 0:02:53]} 14. Rac1 {[%clk 0:02:20]}  Nd7 {[%clk 0:02:52]} 15. Nd2 {[%clk 0:01:58]}  Nb6 {[%clk 0:02:51]} 16. Bh5+ {[%clk 0:01:58]}  Kd8 {[%clk 0:02:40]} 17. Ne4 {[%clk 0:01:58]}  Nd5 {[%clk 0:02:33]} 18. Bf3 {[%clk 0:01:52]}  g5 {[%clk 0:01:58]} 19. Bg3 {[%clk 0:01:50]}  h5 {[%clk 0:01:54]} 20. h4 {[%clk 0:01:48]}  g4 {[%clk 0:01:53]} 21. Be2 {[%clk 0:01:46]}  Bh6 {[%clk 0:01:52]} 22. Rcd1 {[%clk 0:01:47]}  Bf5 {[%clk 0:01:40]} 23. Bc4 {[%clk 0:01:41]}  Bxe4 {[%clk 0:01:21]} 24. Rxe4 {[%clk 0:01:42]}  Kd7 {[%clk 0:01:19]} 25. Rde1 {[%clk 0:01:41]}  Rae8 {[%clk 0:01:18]} 26. Re6 {[%clk 0:01:38]}  Rhf8 {[%clk 0:01:07]} 27. Bd3 {[%clk 0:01:35]}  Rg8 {[%clk 0:00:50]} 28. a3 {[%clk 0:01:15]}  Bf4 {[%clk 0:00:44]} 29. Bf5 {[%clk 0:01:00]}  Kd8 {[%clk 0:00:43]} 30. Bxf4 {[%clk 0:00:57]}  Nxf4 {[%clk 0:00:42]} 31. R6e4 {[%clk 0:00:58]}  Nd5 {[%clk 0:00:42]} 32. Be6 {[%clk 0:00:58]}  Rgf8 {[%clk 0:00:41]} 33. g3 {[%clk 0:00:51]}  Nc7 {[%clk 0:00:35]} 34. Bf5 {[%clk 0:00:51]}  Rg8 {[%clk 0:00:35]} 35. b4 {[%clk 0:00:49]}  e6 {[%clk 0:00:30]} 36. Bxe6 {[%clk 0:00:48]}  Nxe6 {[%clk 0:00:30]} 37. Rxe6 {[%clk 0:00:48]}  Rxe6 {[%clk 0:00:30]} 38. Rxe6 {[%clk 0:00:48]}  Rf8 {[%clk 0:00:31]} 39. f3 {[%clk 0:00:44]}  Kd7 {[%clk 0:00:30]} 40. Re4 {[%clk 0:00:44]}  gxf3 {[%clk 0:00:20]} 41. Kf2 {[%clk 0:00:44]}  Kd6 {[%clk 0:00:20]} 42. Kxf3 {[%clk 0:00:39]}  a5 {[%clk 0:00:18]} 43. Kf4 {[%clk 0:00:28]}  axb4 {[%clk 0:00:18]} 44. axb4 {[%clk 0:00:29]}  Kd5 {[%clk 0:00:13]} 45. Re7 {[%clk 0:00:29]}  b5 {[%clk 0:00:13]} 46. Rd7+ {[%clk 0:00:29]}  Kc4 {[%clk 0:00:13]} 47. Rd6 {[%clk 0:00:29]}  Kxb4 {[%clk 0:00:13]} 48. Rxc6 {[%clk 0:00:30]}  Ka3 {[%clk 0:00:12]} 49. d5 {[%clk 0:00:30]}  b4 {[%clk 0:00:13]} 50. d6 {[%clk 0:00:30]}  b3 {[%clk 0:00:13]} 51. Ra6+ {[%clk 0:00:31]}  Kb4 {[%clk 0:00:11]} 52. Rb6+ {[%clk 0:00:31]}  Kc3 {[%clk 0:00:11]} 53. Kf5 {[%clk 0:00:32]}  b2 {[%clk 0:00:10]} 54. d7 {[%clk 0:00:32]}  Rd8 {[%clk 0:00:09]} 55. Ke6 {[%clk 0:00:32]}  Kc2 {[%clk 0:00:08]} 56. Ke7 {[%clk 0:00:32]}  Rg8 {[%clk 0:00:06]} 57. d8=Q {[%clk 0:00:32]}  Rxd8 {[%clk 0:00:06]} 58. Kxd8 {[%clk 0:00:33]}  b1=Q {[%clk 0:00:06]} 59. Rxb1 {[%clk 0:00:33]}  Kxb1 {[%clk 0:00:06]} 60. Ke7 {[%clk 0:00:33]}  Kc2 {[%clk 0:00:07]} 61. Kxf6 {[%clk 0:00:34]}  Kd3 {[%clk 0:00:07]} 62. Kg5 {[%clk 0:00:34]}  Ke4 {[%clk 0:00:08]} 63. Kxh5 {[%clk 0:00:35]}  Kf3 {[%clk 0:00:08]} 64. g4 {[%clk 0:00:36]}  Kf4 {[%clk 0:00:06]} 65. g5 {[%clk 0:00:37]} 1-0


[Site "https://www.chess.com"]